bitfinex-derivatives/quotes_ETHF0:USTF0_20210403
["timestamp","ask_amount","ask_price","bid_price","bid_amount"]
[1617493443878,2.90695,2021.9,2021.7,38.08342058]
[1617493444277,2.90695,2021.9,2021.7,32.90695]
[1617493445379,2.90695,2021.9,2021.7,30.0]
[1617493445580,2.90695,2021.9,2021.6,5.17664958]
[1617493445981,2.90695,2021.9,2021.4,5.17722875]
[1617493445982,2.0,2021.8,2021.4,5.17722875]
[1617493446382,2.90695,2021.9,2021.0,5.17801073]
[1617493446683,2.90695,2021.9,2020.8,9.23562978]
[1617493446684,2.90695,2021.9,2020.9,5.18027026]
[1617493447281,32.90695,2021.9,2020.9,5.18027026]
[1617493447489,34.90695,2021.9,2020.7,5.18074253]
[1617493447686,2.90695,2020.8,2020.7,5.18074253]
[1617493447984,4.96585,2020.8,2020.6,5.18114685]
[1617493448184,4.96585,2020.8,2020.4,5.18156458]
[1617493448588,4.96585,2020.8,2020.5,5.18152791]
[1617493449589,4.96585,2020.8,2020.6,5.18141447]
[1617493449992,4.96585,2020.8,2020.5,5.18153781]
[1617493450692,4.96585,2020.8,2020.4,5.18193825]
[1617493451093,2.90695,2020.8,2020.5,35.18161263]
[1617493451292,12.9674,2023.2,2020.5,37.79429865]
[1617493451495,26.5135,2023.2,2020.6,6.3322098]
[1617493451696,2.90695,2022.3,2021.3,2.90695]
[1617493451895,2.90695,2022.3,2021.3,34.44505]
[1617493452194,2.90695,2022.3,2021.4,5.17987457]
[1617493452394,2.90695,2022.3,2021.5,6.16183563]
[1617493452595,2.90695,2022.3,2021.6,5.17922745]
[1617493453096,2.90695,2022.3,2021.6,35.17922745]
[1617493453396,2.90695,2022.3,2021.9,5.18537398]
[1617493453697,2.90695,2022.0,2021.9,9.85872398]
[1617493454196,2.83935,2022.0,2021.9,9.85872398]
[1617493457797,2.83935,2022.0,2021.9,4.67335]
[1617493457996,2.83935,2022.0,2021.9,2.90695]
[1617493459601,2.83935,2022.0,2021.9,8.09355278]
[1617493460199,28.5135,2023.2,2021.9,10.28745278]
[1617493460602,6.82175,2022.2,2021.9,10.28745278]
[1617493460802,6.82175,2022.2,2022.0,5.18637306]
[1617493461802,9.7287,2022.2,2022.0,5.18637306]
[1617493462104,9.7287,2022.2,2022.1,5.18618574]
[1617493462707,9.7287,2022.2,2022.0,5.18670063]
[1617493463203,11.4992,2022.2,2021.9,2.90695]
[1617493464609,11.4992,2022.2,2022.0,5.19635636]
[1617493464808,9.7287,2022.2,2022.0,5.19635636]
[1617493465209,9.7287,2022.2,2022.0,6.89775636]
[1617493465411,9.7287,2022.2,2022.1,5.19592864]
[1617493465710,9.7287,2022.2,2022.1,6.35017823]
[1617493465912,9.4358,2022.2,2022.1,6.35017823]
[1617493466412,9.4358,2022.2,2022.0,1.7014]
[1617493468815,9.4358,2022.2,2021.9,2.90695]
[1617493469017,9.1888,2022.2,2021.9,2.90695]
[1617493469717,9.1888,2022.2,2022.1,7.90257675]
[1617493470024,9.1888,2022.2,2022.1,1.5545]
[1617493472521,9.1888,2022.2,2021.9,2.90695]
[1617493472720,8.6281,2022.2,2021.9,2.90695]
[1617493472919,8.4215,2022.2,2022.0,6.3479747]
[1617493473723,6.9655,2022.2,2022.0,6.3479747]
[1617493474123,6.9655,2022.2,2021.9,2.90695]
[1617493474627,5.9955,2022.2,2022.1,6.34772285]
[1617493474822,5.0055,2022.2,2022.1,6.34772285]
[1617493475024,5.0055,2022.2,2021.9,32.90695]
[1617493476124,4.8785,2022.2,2021.9,32.90695]
[1617493476423,4.0085,2022.2,2021.9,32.90695]
[1617493478326,3.0125,2022.2,2021.9,32.90695]
[1617493478829,3.0125,2022.2,2022.0,0.33654927]
[1617493480033,3.0125,2022.2,2021.9,32.90695]
[1617493480731,0.10555,2022.2,2021.9,32.90695]
[1617493480931,0.10555,2022.2,2021.9,40.40638401]
[1617493481231,0.10555,2022.2,2022.0,0.33636509]
[1617493484333,0.837,2022.9,2022.0,0.33636509]
[1617493484834,0.837,2022.9,2022.5,5.18903802]
[1617493485035,2.571,2023.3,2022.6,30.0]
[1617493485342,2.571,2023.3,2022.6,35.18899871]
[1617493486036,5.47795,2023.3,2023.2,5.47795]
[1617493487439,5.47795,2023.3,2023.2,4.49125]
[1617493488941,5.47795,2023.3,2022.5,30.0]
[1617493489542,5.47795,2023.3,2022.4,5.18919609]
[1617493489944,5.47795,2023.3,2022.8,2.90695]
[1617493489945,2.571,2023.3,2022.8,2.90695]
[1617493491248,2.571,2023.3,2022.8,3.89565]
[1617493491851,2.571,2023.3,2022.8,2.90695]
[1617493492050,2.90695,2022.9,2022.8,2.90695]
[1617493493454,2.90695,2022.9,2022.8,3.90205]
[1617493493652,2.90695,2022.9,2022.8,2.90695]
[1617493494654,2.90695,2022.9,2022.8,3.91025]
[1617493494854,2.90695,2022.9,2022.8,2.90695]
[1617493495254,4.97275,2022.9,2022.3,5.19065609]
[1617493495656,4.97275,2022.9,2022.0,5.19106635]
[1617493495958,2.90695,2022.1,2022.0,8.09801635]
[1617493496156,5.28565,2022.1,2022.0,2.90695]
[1617493497157,5.28565,2022.1,2022.0,8.09831041]
[1617493497357,2.90695,2022.1,2022.0,8.09831041]
[1617493498658,2.0,2023.2,2022.0,8.09831041]
[1617493498859,2.0,2023.2,2022.0,2.90695]
[1617493499158,2.0,2023.2,2022.1,5.19044773]
[1617493500059,2.0,2023.2,2022.4,2.90695]
[1617493501062,2.0,2023.2,2022.1,5.19044773]
[1617493501260,4.4129,2023.2,2022.1,5.19044773]
[1617493502061,5.10405,2022.2,2022.1,8.09739773]
[1617493502462,5.10405,2022.2,2021.9,5.19084843]
[1617493502866,5.10405,2022.2,2021.7,5.19126677]
[1617493503670,5.10405,2022.2,2021.6,5.19187421]
[1617493503870,5.10405,2022.2,2021.7,5.1918471]
[1617493504073,2.90695,2021.8,2021.7,5.1918471]
[1617493505369,2.90695,2021.8,2021.5,10.2549409]
[1617493505370,2.90695,2021.8,2021.6,5.19199406]
[1617493506069,2.90695,2021.8,2021.7,5.19189818]
[1617493506970,2.90695,2021.8,2021.6,5.19196712]
[1617493508572,44.9337,2023.2,2021.6,5.19196712]
[1617493508775,44.9337,2023.2,2021.7,6.34501513]
[1617493509074,44.9337,2023.2,2021.9,5.19136692]
[1617493510074,2.90695,2022.0,2021.8,5.1897999]
[1617493512178,2.90695,2022.0,2021.8,8.0967499]
[1617493513178,2.90695,2022.0,2021.8,2.90695]
[1617493516683,2.90695,2022.0,2021.7,5.19029368]
[1617493517082,2.90695,2022.0,2021.6,5.19165932]
[1617493517583,2.0,2021.9,2021.4,5.19194302]
[1617493518183,2.90695,2021.5,2021.4,8.09889302]
[1617493518683,2.90695,2021.5,2021.4,2.90695]
[1617493519785,2.90695,2021.5,2021.4,8.09882625]
[1617493520786,2.90695,2021.5,2021.4,5.19187625]
[1617493521087,32.90695,2021.5,2021.2,5.19141217]
[1617493521487,32.90695,2021.5,2019.8,10.79560077]
[1617493521488,30.0,2021.3,2020.9,5.19192909]
[1617493521791,30.0,2021.3,2020.6,5.19224514]
[1617493522190,2.90695,2020.7,2020.6,5.19224514]
[1617493522388,4.77765,2020.7,2020.6,5.19224514]
[1617493522590,4.77765,2020.7,2020.5,5.19281932]
[1617493522789,2.0,2020.6,2020.5,5.19281932]
[1617493522990,2.0,2020.6,2020.4,5.19295775]
[1617493523989,2.0,2020.6,2020.5,5.19308945]
[1617493524389,2.0,2020.6,2020.4,5.19301805]
[1617493525390,2.0,2020.6,2020.3,5.19336416]
[1617493525890,2.0,2020.6,2020.2,5.19362585]
[1617493526091,2.0,2020.6,2019.8,2.90695]
[1617493526390,2.90695,2020.3,2019.8,2.90695]
[1617493527492,32.90695,2020.3,2019.8,2.90695]
[1617493527795,30.0,2020.1,2019.4,5.17578546]
[1617493527993,30.0,2020.1,2019.2,5.17611145]
[1617493528193,2.90695,2019.3,2019.2,5.17611145]
[1617493528394,4.74605,2019.3,2019.1,8.08317142]
[1617493529197,4.74605,2019.3,2019.1,2.90695]
[1617493531102,2.90695,2019.3,2019.1,2.90695]
[1617493532900,4.52575,2019.3,2019.1,2.90695]
[1617493533907,2.0,2019.2,2019.1,2.90695]
[1617493535203,2.90695,2019.3,2019.1,2.90695]
[1617493535402,2.90695,2019.3,2019.1,5.27795]
[1617493536705,30.0,2020.5,2019.1,5.27795]
[1617493536905,30.0,2020.5,2019.2,5.17118351]
[1617493537305,30.0,2020.5,2019.1,2.90695]
[1617493537505,32.3239,2020.5,2019.1,2.90695]
[1617493537705,2.0,2020.4,2019.1,2.90695]
[1617493537904,30.0,2020.3,2019.1,2.90695]
[1617493538105,2.0,2020.2,2019.1,2.90695]
[1617493538305,2.90695,2019.2,2019.1,2.90695]
[1617493538505,37.41115,2019.2,2018.1,5.16321607]
[1617493539106,37.41115,2019.2,2017.4,5.16495846]
[1617493539507,37.41115,2019.2,2017.2,5.16591355]
[1617493539807,37.41115,2019.2,2017.0,5.16615586]
[1617493540210,34.5042,2019.2,2017.6,2.90695]
[1617493541609,34.5042,2019.2,2017.6,5.13805]
[1617493542210,34.5042,2019.2,2018.2,2.90695]
[1617493542411,34.5042,2019.2,2018.2,4.49765]
[1617493543114,32.0,2020.2,2018.2,4.49765]
[1617493543712,32.9961,2020.2,2018.2,4.49765]
[1617493544214,32.9961,2020.2,2018.2,2.90695]
[1617493544416,2.90695,2018.3,2018.2,2.90695]
[1617493545115,32.0,2020.2,2018.2,2.90695]
[1617493545318,32.0,2020.2,2018.2,4.63935]
[1617493546319,32.0,2020.2,2018.9,5.08285]
[1617493546518,32.0,2020.2,2018.9,2.1759]
[1617493547117,32.0,2020.2,2017.7,5.16449244]
[1617493547118,32.99,2020.2,2017.7,5.16449244]
[1617493547318,35.1233,2020.2,2017.3,6.15373978]
[1617493547518,35.1233,2020.2,2017.3,0.9882]
[1617493547922,34.1333,2020.2,2017.3,0.9882]
[1617493549124,35.12,2020.2,2017.3,0.9882]
[1617493549932,34.1333,2020.2,2017.3,0.9882]
[1617493550131,32.0,2020.2,2017.3,0.9882]
[1617493550434,32.0,2020.2,2018.4,4.60755]
[1617493550933,32.0,2020.2,2018.4,1.7006]
[1617493551332,32.0,2020.2,2017.6,2.2637]
[1617493551532,33.8593,2020.2,2017.6,2.2637]
[1617493552334,33.8593,2020.2,2018.3,2.90695]
[1617493552538,32.0,2020.2,2018.3,2.90695]
[1617493552939,30.0,2020.2,2018.3,2.90695]
[1617493553137,30.0,2020.2,2018.3,32.90695]
[1617493554338,30.0,2020.2,2019.2,2.90695]
[1617493554639,30.0,2020.2,2019.2,5.05265]
[1617493554939,30.0,2020.2,2019.2,2.1457]
[1617493555140,2.0,2020.1,2019.2,2.1457]
[1617493555338,30.0,2020.0,2018.4,0.984]
[1617493555541,2.0,2019.9,2017.4,30.0]
[1617493555739,30.0,2019.8,2017.4,30.0]
[1617493555939,2.0,2019.7,2017.4,30.0]
[1617493556139,30.0,2019.6,2017.4,30.0]
[1617493556341,32.0971,2019.6,2018.3,2.90695]
[1617493556839,32.0971,2019.6,2017.4,30.0]
[1617493557041,34.0971,2019.6,2017.4,30.0]
[1617493558341,34.0971,2019.6,2018.5,2.90695]
[1617493558543,32.0,2020.2,2018.5,5.49775]
[1617493559944,32.0,2020.2,2018.5,3.89555]
[1617493560444,2.90695,2018.6,2018.5,3.89555]
[1617493560646,4.88035,2018.6,2018.5,2.90695]
[1617493561743,4.88035,2018.6,2018.5,3.89955]
[1617493562144,32.0,2020.2,2018.5,3.89955]
[1617493562344,2.90695,2018.9,2018.5,6.18935]
[1617493562745,32.0,2020.2,2018.5,6.18935]
[1617493563445,32.0,2020.2,2018.5,3.89955]
[1617493563645,32.0,2020.2,2017.3,0.9882]
[1617493563849,34.4466,2020.2,2017.3,0.9882]
[1617493564346,35.4217,2020.2,2017.3,0.9882]
[1617493564547,5.08975,2017.6,2017.4,2.90695]
[1617493566147,1.6496,2018.9,2017.4,2.90695]
[1617493566350,1.7971,2019.7,2017.4,4.94465]
[1617493566549,1.7971,2019.7,2018.0,2.90695]
[1617493568648,2.90695,2018.1,2018.0,2.90695]
[1617493569150,4.189,2018.8,2018.0,2.90695]
[1617493569350,2.0,2018.8,2017.9,2.2838]
[1617493570451,2.0,2018.8,2017.3,0.9882]
[1617493570651,2.0,2018.8,2018.1,2.90695]
[1617493570858,1.6986,2019.2,2018.1,2.90695]
[1617493571151,31.6986,2019.2,2018.1,2.90695]
[1617493571463,31.6986,2019.2,2017.3,0.9882]
[1617493571651,33.6986,2019.2,2017.3,0.9882]
[1617493571853,33.6986,2019.2,2016.9,0.9964]
[1617493572651,26.9016,2019.1,2017.4,2.90695]
[1617493572856,32.0,2019.0,2017.4,2.90695]
[1617493573259,32.0,2019.0,2016.9,0.9964]
[1617493574558,2.90695,2017.0,2016.8,0.9915]
[1617493574757,5.27395,2017.0,2016.8,0.9915]
[1617493574959,5.27395,2017.0,2015.2,30.0]
[1617493575159,5.27395,2017.0,2014.8,30.0]
[1617493575760,5.27395,2017.0,2014.9,0.33548103]
[1617493575961,5.27395,2017.0,2014.8,30.0]
[1617493576360,5.27395,2017.0,2014.9,0.33547128]
[1617493576560,5.27395,2017.0,2016.3,2.90695]
[1617493576561,2.367,2017.0,2016.3,2.90695]
[1617493577160,32.367,2017.0,2015.4,0.9789]
[1617493578062,30.0,2016.8,2015.4,0.9789]
[1617493578663,30.0,2016.8,2015.5,2.90695]
[1617493579065,2.0,2016.7,2015.5,2.90695]
[1617493579365,30.0,2016.6,2015.5,2.90695]
[1617493579566,2.0,2016.5,2015.5,2.90695]
[1617493579766,30.0,2016.4,2015.5,2.90695]
[1617493579971,2.0,2016.3,2014.5,0.9864]
[1617493580165,30.0,2016.2,2014.5,0.9864]
[1617493580366,2.0,2016.1,2014.5,0.9864]
[1617493580670,32.3878,2016.0,2015.2,2.90695]
[1617493582566,2.90695,2015.3,2015.2,2.90695]
[1617493582768,2.90695,2015.3,2014.5,0.9864]
[1617493582968,34.55065,2015.3,2014.5,0.9864]
[1617493583269,30.0,2015.2,2014.4,0.9875]
[1617493583474,30.0,2015.2,2013.3,5.13326821]
[1617493583670,30.0,2015.2,2013.0,5.13381031]
[1617493583968,30.0,2015.2,2012.8,6.27465705]
[1617493583969,4.55065,2015.3,2013.2,38.0]
[1617493584168,13.313,2016.9,2013.2,38.0]
[1617493584469,13.8461,2016.8,2013.3,2.67050168]
[1617493584668,13.8461,2016.8,2014.7,2.90695]
[1617493584868,13.8461,2016.8,2014.7,3.90745]
[1617493585069,30.0,2016.1,2014.7,1.0005]
[1617493585369,2.0,2016.0,2014.7,1.0005]
[1617493586673,2.0,2016.0,2014.8,2.90695]
[1617493587573,78.3838,2016.2,2014.8,2.90695]
[1617493587774,76.3838,2016.2,2014.8,2.90695]
[1617493588575,76.3838,2016.2,2014.7,1.0005]
[1617493588775,78.3838,2016.2,2014.7,1.0005]
[1617493588974,80.567,2016.2,2014.7,1.0005]
[1617493590778,80.567,2016.2,2015.0,2.90695]
[1617493590979,80.567,2016.2,2014.7,1.0005]
[1617493591181,110.567,2016.2,2014.7,1.0005]
[1617493591578,111.559,2016.2,2014.7,1.0005]
[1617493591878,110.567,2016.2,2014.7,1.0005]
[1617493592781,2.90695,2014.8,2014.7,1.0005]
[1617493592980,4.87915,2014.8,2014.7,1.0005]
[1617493594083,2.90695,2014.8,2014.7,1.0005]
[1617493594783,2.90695,2014.8,2014.7,3.90745]
[1617493595884,2.90695,2014.8,2014.7,1.0005]
[1617493596891,2.90695,2014.8,2014.5,2.90695]
[1617493598590,2.90695,2014.8,2014.2,0.9926]
[1617493598792,2.4088,2015.2,2014.2,0.9926]
[1617493599593,59.3984,2015.6,2014.2,0.9926]
[1617493600192,59.3984,2015.6,2013.2,8.0]
[1617493600796,59.3984,2015.6,2013.4,2.90695]
[1617493601897,59.3984,2015.6,2013.4,4.47885]
[1617493602396,57.3984,2015.6,2013.4,4.47885]
[1617493602597,27.3984,2015.6,2013.5,30.0]
[1617493602796,2.90695,2015.6,2015.5,2.90695]
[1617493603001,2.65555,2015.6,2015.5,5.48275]
[1617493603197,76.3838,2016.2,2015.5,5.48275]
[1617493603495,73.1924,2016.2,2015.5,5.48275]
[1617493603699,71.2118,2016.2,2015.5,5.48275]
[1617493604600,70.2316,2016.2,2015.5,5.48275]
[1617493605000,2.90695,2017.1,2016.1,2.90695]
[1617493605201,2.90695,2017.1,2016.1,5.31825]
[1617493606000,2.90695,2017.1,2016.1,2.4113]
[1617493606406,2.90695,2017.1,2015.5,0.9876]
[1617493606903,28.0729,2017.4,2016.4,2.90695]
[1617493607103,28.0729,2017.4,2016.4,5.39755]
[1617493608906,28.0729,2017.4,2016.4,2.4906]
[1617493609104,28.0729,2017.4,2015.5,0.9876]
[1617493609306,30.4688,2017.4,2015.5,0.9876]
[1617493611005,28.0729,2017.4,2015.5,0.9876]
[1617493612805,30.0729,2017.4,2015.5,0.9876]
[1617493613006,28.0729,2017.4,2016.1,2.90695]
[1617493615008,28.0729,2017.4,2016.7,2.90695]
[1617493617009,2.90695,2016.8,2016.7,2.90695]
[1617493620918,2.66095,2016.8,2016.7,2.90695]
[1617493621116,32.0,2018.6,2016.7,2.90695]
[1617493621317,1.6816,2019.9,2016.7,2.90695]
[1617493621318,2.0,2019.1,2016.7,34.66875]
[1617493621516,60.9247,2018.4,2016.7,34.66875]
[1617493621720,58.4687,2018.4,2016.7,34.66875]
[1617493622617,88.4687,2018.4,2016.7,34.66875]
[1617493622817,88.4687,2018.4,2016.7,2.90695]
[1617493623019,2.90695,2017.2,2017.1,2.90695]
[1617493623423,2.2365,2017.4,2017.1,2.90695]
[1617493624222,58.4687,2018.4,2017.1,2.90695]
[1617493624920,2.90695,2017.2,2017.1,2.90695]
[1617493625120,58.4687,2018.4,2017.1,2.90695]
[1617493625322,58.2203,2018.4,2017.1,4.77155]
[1617493626422,58.2203,2018.4,2017.1,2.90695]
[1617493626925,88.2203,2018.4,2017.1,2.90695]
[1617493627123,5.13535,2017.2,2017.1,2.90695]
[1617493628024,5.13535,2017.2,2015.3,30.0]
[1617493629025,2.90695,2017.2,2017.1,2.90695]
[1617493629226,30.0,2018.2,2017.1,5.40455]
[1617493629426,25.5043,2018.3,2017.1,4.42725]
[1617493629626,25.0097,2018.3,2017.1,4.42725]
[1617493630326,55.0097,2018.3,2017.1,2.90695]
[1617493631127,2.90695,2017.3,2017.1,2.90695]
[1617493631327,4.79135,2017.3,2017.0,0.9774]
[1617493632330,4.79135,2017.3,2015.5,30.9876]
[1617493633131,1.8844,2017.3,2016.9,2.90695]
[1617493633332,1.8844,2017.3,2015.6,0.33632612]
[1617493634232,1.8844,2017.3,2015.5,0.9876]
[1617493634834,1.8844,2017.3,2015.6,0.33634001]
[1617493635035,2.0,2017.9,2016.9,2.90695]
[1617493635835,30.0,2017.8,2016.9,2.90695]
[1617493636235,2.0,2017.7,2016.9,2.90695]
[1617493636436,32.0,2017.7,2015.5,0.9876]
[1617493637140,32.0,2017.7,2016.2,2.90695]
[1617493639138,32.0,2017.7,2015.5,0.9876]
[1617493639441,30.0,2017.6,2015.5,0.9876]
[1617493639638,32.0,2017.6,2015.5,0.9876]
[1617493641140,32.0,2017.6,2015.9,2.90695]
[1617493641940,30.0,2017.6,2015.9,2.90695]
[1617493642841,31.9518,2017.6,2015.9,2.90695]
[1617493643041,2.0,2017.5,2015.9,2.90695]
[1617493643242,2.0,2017.5,2016.7,2.90695]
[1617493643441,32.0,2017.5,2016.7,2.90695]
[1617493643743,32.0,2017.5,2015.5,0.9876]
[1617493645245,32.0,2017.5,2016.2,2.90695]
[1617493646047,30.0,2017.5,2016.2,2.90695]
[1617493646548,30.0,2018.1,2016.2,2.90695]
[1617493646749,32.0,2018.1,2016.2,2.90695]
[1617493647151,30.0,2018.1,2016.2,2.90695]
[1617493647354,25.0097,2018.3,2017.8,4.48095]
[1617493649258,2.90695,2017.9,2017.8,4.48095]
[1617493649960,25.0097,2018.3,2017.8,4.48095]
[1617493650161,12.0667,2018.3,2017.8,4.48095]
[1617493651260,2.90695,2018.1,2017.8,4.48095]
[1617493651459,2.90695,2018.1,2017.8,2.90695]
[1617493652461,5.32565,2018.1,2017.1,0.991]
[1617493652662,5.32565,2018.1,2016.7,30.0]
[1617493653161,5.32565,2018.1,2016.5,30.0]
[1617493653362,2.4187,2018.1,2017.2,2.90695]
[1617493654361,30.0,2018.2,2017.2,2.90695]
[1617493654760,12.0667,2018.3,2017.2,2.90695]
[1617493655362,2.90695,2017.3,2017.2,2.90695]
[1617493655962,12.0667,2018.3,2017.2,3.24534624]
[1617493656162,12.0667,2018.3,2017.2,5.34254624]
[1617493656462,12.0667,2018.3,2017.3,1.3225295]
[1617493656662,13.3471,2018.7,2017.3,1.3225295]
[1617493657063,13.3471,2018.7,2017.4,0.33830675]
[1617493657465,13.3471,2018.7,2018.1,2.90695]
[1617493658065,32.0,2019.1,2018.1,2.90695]
[1617493659367,2.90695,2018.2,2018.1,2.90695]
[1617493666180,43.2614,2019.4,2018.1,2.90695]
[1617493666382,43.2614,2019.4,2018.1,5.08165]
[1617493667380,2.90695,2018.9,2018.6,2.90695]
[1617493667584,2.90695,2018.9,2018.6,5.21785]
[1617493668584,2.90695,2018.9,2018.6,2.90695]
[1617493669084,4.56125,2018.9,2017.5,30.0]
[1617493669386,1.6543,2018.9,2018.0,2.90695]
[1617493670584,13.2614,2019.4,2018.0,4.72345]
[1617493671383,2.90695,2019.3,2018.9,2.90695]
[1617493671585,2.90695,2019.3,2018.8,2.1788]
[1617493672589,2.90695,2019.3,2018.5,0.9808]
[1617493672890,2.90695,2019.3,2018.0,1.8165]
[1617493673490,13.2614,2019.4,2018.6,2.90695]
[1617493674594,2.0,2019.3,2018.6,2.90695]
[1617493674794,32.0,2019.3,2017.4,35.16823055]
[1617493675006,32.0,2019.3,2017.4,30.0]
[1617493675297,32.0,2019.3,2017.5,0.33773071]
[1617493675498,32.0,2019.3,2018.0,2.90695]
[1617493675699,30.0,2019.3,2018.0,2.90695]
[1617493677500,30.0,2019.3,2018.3,2.90695]
[1617493679505,30.0,2019.3,2018.8,2.90695]
[1617493679706,30.0,2019.3,2017.8,2.1133]
[1617493680203,30.0,2019.3,2017.9,0.33775423]
[1617493681604,30.0,2019.3,2018.4,2.90695]
[1617493683707,2.90695,2018.5,2018.4,2.90695]
[1617493684107,2.1885,2018.8,2017.4,35.16498629]
[1617493684507,2.1885,2018.8,2017.5,0.3373901]
[1617493685210,30.0,2019.3,2017.5,0.3373901]
[1617493685711,2.90695,2018.7,2018.4,2.90695]
[1617493688914,13.3058,2020.1,2018.4,2.90695]
[1617493689113,13.3058,2020.1,2018.4,4.65125]
[1617493689313,30.0,2020.0,2018.4,4.65125]
[1617493689515,29.3966,2020.0,2018.4,9.83277643]
[1617493689715,29.3966,2020.0,2019.0,2.90695]
[1617493690118,29.3966,2020.0,2018.8,1.0012]
[1617493690616,29.3966,2020.0,2018.3,5.18168829]
[1617493691620,29.3966,2020.0,2018.2,5.18196403]
[1617493691821,31.3966,2020.0,2018.4,2.90695]
[1617493692620,31.3966,2020.0,2018.4,4.93515]
[1617493693221,31.3966,2020.0,2018.4,10.11672814]
[1617493693421,31.3966,2020.0,2018.4,4.93515]
[1617493693722,31.3966,2020.0,2018.4,2.90695]
[1617493694021,31.3966,2020.0,2018.9,3.90515]
[1617493694920,31.3966,2020.0,2018.2,5.18187168]
[1617493695120,33.5443,2020.0,2018.2,5.18187168]
[1617493695722,33.5443,2020.0,2018.1,5.1820961]
[1617493696021,33.5443,2020.0,2018.4,2.90695]
[1617493697930,33.5443,2020.0,2018.7,2.90695]
[1617493698730,33.5443,2020.0,2018.3,5.18769594]
[1617493698934,33.5443,2020.0,2017.3,9.6303599]
[1617493698935,33.5443,2020.0,2018.2,5.1882164]
[1617493699232,33.5443,2020.0,2017.9,5.18861734]
[1617493699632,33.5443,2020.0,2017.7,5.18908828]
[1617493699833,2.90695,2017.8,2017.7,8.09603828]
[1617493700033,5.34685,2017.8,2017.5,5.18963784]
[1617493700433,5.34685,2017.8,2017.3,5.19009512]
[1617493700935,5.34685,2017.8,2017.2,5.19032296]
[1617493701138,5.34685,2017.8,2017.3,5.19246354]
[1617493701537,5.34685,2017.8,2017.2,5.19261528]
[1617493701835,2.90695,2017.3,2017.2,8.09956528]
[1617493702035,4.47195,2017.3,2017.2,8.09956528]
[1617493702535,4.47195,2017.3,2017.2,5.19261528]
[1617493702936,4.47195,2017.3,2017.1,5.19297415]
[1617493703435,4.47195,2017.3,2015.7,9.80895118]
[1617493703436,4.47195,2017.3,2017.0,5.19301554]
[1617493704636,33.86855,2017.3,2016.9,5.19339105]
[1617493705037,35.86855,2017.3,2016.9,5.19339105]
[1617493705439,35.86855,2017.3,2016.7,5.1938643]
[1617493705738,35.86855,2017.3,2016.6,5.19428192]
[1617493705938,2.90695,2016.7,2016.6,5.19428192]
[1617493706138,4.65125,2016.7,2016.6,5.19428192]
[1617493706339,4.65125,2016.7,2016.5,5.19423142]
[1617493706840,4.65125,2016.7,2016.4,5.19432715]
[1617493707039,4.65125,2016.7,2016.5,5.19434946]
[1617493707640,34.04785,2016.7,2016.5,5.19434946]
[1617493707841,34.04785,2016.7,2016.4,5.19456765]
[1617493708143,34.04785,2016.7,2016.5,5.19760275]
[1617493708441,34.04785,2016.7,2016.3,5.19780459]
[1617493708940,34.04785,2016.7,2015.7,10.41488996]
[1617493708941,34.04785,2016.7,2016.4,5.19782955]
[1617493709440,1.7443,2016.7,2016.4,5.19782955]
[1617493709641,30.0,2017.3,2016.5,5.19732423]
[1617493709841,2.90695,2016.6,2016.5,9.59736684]
[1617493710040,2.90695,2016.6,2016.5,9.25904117]
[1617493710441,2.90695,2016.6,2016.5,9.59738021]
[1617493710644,4.74085,2016.6,2016.5,6.69043021]
[1617493711043,4.74085,2016.6,2016.5,6.35209117]
[1617493711243,4.74085,2016.6,2016.5,5.19747227]
[1617493711444,36.74085,2016.6,2016.5,5.19747227]
[1617493711645,36.74085,2016.6,2016.4,5.19794414]
[1617493712144,36.74085,2016.6,2016.2,5.19817808]
[1617493712343,34.74085,2016.6,2016.2,5.19817808]
[1617493713146,34.74085,2016.6,2015.5,3.89455]
[1617493713846,34.74085,2016.6,2015.4,5.18463877]
[1617493714046,5.41055,2015.6,2015.4,5.18463877]
[1617493714246,5.41055,2015.6,2015.2,6.33678072]
[1617493714247,5.41055,2015.6,2015.2,5.18504728]
[1617493715046,5.41055,2015.6,2015.1,8.09222703]
[1617493715245,2.90695,2015.6,2015.1,8.09222703]
[1617493715645,2.90695,2015.6,2015.2,5.18155054]
[1617493716045,2.90695,2015.6,2015.5,3.88445]
[1617493716846,107.8737,2016.6,2015.5,3.88445]
[1617493717248,32.0,2016.6,2015.5,3.88445]
[1617493717447,30.0,2016.5,2015.5,2.90695]
[1617493717848,31.6832,2016.5,2015.5,2.90695]
[1617493718049,2.90695,2015.6,2015.3,5.18151769]
[1617493718349,2.90695,2015.6,2015.2,5.18181362]
[1617493719048,2.90695,2015.6,2015.1,2.90695]
[1617493719950,2.90695,2015.6,2015.5,2.90695]
[1617493721856,30.0,2016.5,2015.5,2.90695]
[1617493722155,30.0,2016.5,2015.4,1.0068]
[1617493722556,30.0,2016.5,2015.1,5.18183711]
[1617493722756,32.0,2016.5,2015.1,5.18183711]
[1617493722956,32.0,2016.5,2014.9,5.18218482]
[1617493723257,32.0,2016.5,2014.7,5.18247647]
[1617493723559,30.0,2016.4,2014.7,5.18247647]
[1617493723858,31.76,2016.4,2014.7,5.18247647]
[1617493724159,31.76,2016.4,2015.4,2.90695]
[1617493724359,31.76,2016.4,2014.2,1.0011]
[1617493724360,31.76,2016.4,2014.2,6.17055684]
[1617493724761,31.76,2016.4,2014.2,1.0011]
[1617493725062,2.0,2016.3,2014.2,1.0011]
[1617493725262,30.0,2016.2,2014.2,1.0011]